[Event "Titled Tuesday Blitz November 01 Late 2022"]
[White "ChessBrah"]
[Black "Vusatiuk, Vladimir"]
[BlackFideId "14118610"]
[WhiteElo "2907"]
[BlackElo "2208"]
[Result "1/2-1/2"]
[Round "07"]
[TimeControl "180+1"]
[Date "2022.11.01"]
[WhiteClock "0:00:02"]
[BlackClock "0:00:07"]

1. d4 {[%clk 0:03:00]}  Nf6 {[%clk 0:03:00]} 2. c4 {[%clk 0:02:56]}  c6 {[%clk 0:02:59]} 3. Nf3 {[%clk 0:02:55]}  d5 {[%clk 0:03:00]} 4. e3 {[%clk 0:02:54]}  g6 {[%clk 0:03:00]} 5. Bd3 {[%clk 0:02:52]}  Bg7 {[%clk 0:02:59]} 6. O-O {[%clk 0:02:52]}  O-O {[%clk 0:03:00]} 7. b3 {[%clk 0:02:51]}  Bg4 {[%clk 0:02:59]} 8. Nbd2 {[%clk 0:02:51]}  Nbd7 {[%clk 0:02:57]} 9. h3 {[%clk 0:02:51]}  Bxf3 {[%clk 0:02:57]} 10. Nxf3 {[%clk 0:02:52]}  e6 {[%clk 0:02:53]} 11. Ba3 {[%clk 0:02:50]}  Re8 {[%clk 0:02:53]} 12. Qc2 {[%clk 0:02:50]}  e5 {[%clk 0:02:48]} 13. dxe5 {[%clk 0:02:37]}  Nxe5 {[%clk 0:02:47]} 14. Nxe5 {[%clk 0:02:38]}  Rxe5 {[%clk 0:02:48]} 15. Rad1 {[%clk 0:02:38]}  Re8 {[%clk 0:02:25]} 16. Bb2 {[%clk 0:02:28]}  Qe7 {[%clk 0:02:20]} 17. Bd4 {[%clk 0:02:03]}  dxc4 {[%clk 0:02:14]} 18. Bxc4 {[%clk 0:01:58]}  Ne4 {[%clk 0:02:08]} 19. Bxg7 {[%clk 0:01:54]}  Kxg7 {[%clk 0:02:09]} 20. Rd4 {[%clk 0:01:54]}  Rad8 {[%clk 0:02:02]} 21. Rfd1 {[%clk 0:01:53]}  Nf6 {[%clk 0:01:48]} 22. a4 {[%clk 0:01:39]}  Rxd4 {[%clk 0:01:43]} 23. Rxd4 {[%clk 0:01:40]}  Qe5 {[%clk 0:01:41]} 24. Qd1 {[%clk 0:01:36]}  Re7 {[%clk 0:01:37]} 25. Be2 {[%clk 0:01:27]}  h5 {[%clk 0:01:29]} 26. Bf3 {[%clk 0:01:24]}  c5 {[%clk 0:01:17]} 27. Rd3 {[%clk 0:01:17]}  b6 {[%clk 0:01:16]} 28. g3 {[%clk 0:01:17]}  h4 {[%clk 0:01:12]} 29. gxh4 {[%clk 0:01:13]}  Re8 {[%clk 0:01:10]} 30. Qc2 {[%clk 0:01:07]}  Rh8 {[%clk 0:01:07]} 31. Qc4 {[%clk 0:01:07]}  Qf5 {[%clk 0:01:04]} 32. Kg2 {[%clk 0:00:58]}  Rxh4 {[%clk 0:01:01]} 33. Qxh4 {[%clk 0:00:56]}  Qxd3 {[%clk 0:01:02]} 34. Qc4 {[%clk 0:00:54]}  Qxc4 {[%clk 0:01:01]} 35. bxc4 {[%clk 0:00:55]}  Nd7 {[%clk 0:01:00]} 36. Be2 {[%clk 0:00:46]}  f5 {[%clk 0:00:53]} 37. f4 {[%clk 0:00:45]}  Kf6 {[%clk 0:00:51]} 38. h4 {[%clk 0:00:45]}  Ke6 {[%clk 0:00:46]} 39. h5 {[%clk 0:00:41]}  gxh5 {[%clk 0:00:46]} 40. Bxh5 {[%clk 0:00:42]}  Nf6 {[%clk 0:00:43]} 41. Bf3 {[%clk 0:00:41]}  Ne8 {[%clk 0:00:34]} 42. Kg3 {[%clk 0:00:40]}  Nd6 {[%clk 0:00:33]} 43. Bd5+ {[%clk 0:00:23]}  Kf6 {[%clk 0:00:34]} 44. Kh4 {[%clk 0:00:23]}  Ne8 {[%clk 0:00:30]} 45. Kh5 {[%clk 0:00:20]}  Nd6 {[%clk 0:00:29]} 46. Kh6 {[%clk 0:00:20]}  Nc8 {[%clk 0:00:25]} 47. Kh7 {[%clk 0:00:18]}  Nd6 {[%clk 0:00:24]} 48. Kg8 {[%clk 0:00:18]}  Ne8 {[%clk 0:00:21]} 49. Kf8 {[%clk 0:00:16]}  Nd6 {[%clk 0:00:20]} 50. Bg8 {[%clk 0:00:09]}  Ne4 {[%clk 0:00:20]} 51. Bd5 {[%clk 0:00:04]}  Nc3 {[%clk 0:00:20]} 52. Bc6 {[%clk 0:00:04]}  Nd1 {[%clk 0:00:21]} 53. Ke8 {[%clk 0:00:03]}  Nxe3 {[%clk 0:00:20]} 54. Bb5 {[%clk 0:00:03]}  Ng2 {[%clk 0:00:19]} 55. Kd7 {[%clk 0:00:04]}  Nxf4 {[%clk 0:00:19]} 56. Kc7 {[%clk 0:00:05]}  Ne6+ {[%clk 0:00:15]} 57. Kb7 {[%clk 0:00:05]}  Nd4 {[%clk 0:00:13]} 58. Kxa7 {[%clk 0:00:04]}  Nxb5+ {[%clk 0:00:11]} 59. cxb5 {[%clk 0:00:03]}  c4 {[%clk 0:00:11]} 60. a5 {[%clk 0:00:04]}  bxa5 {[%clk 0:00:09]} 61. b6 {[%clk 0:00:04]}  c3 {[%clk 0:00:10]} 62. b7 {[%clk 0:00:05]}  c2 {[%clk 0:00:10]} 63. b8=Q {[%clk 0:00:06]}  c1=Q {[%clk 0:00:11]} 64. Qd6+ {[%clk 0:00:06]}  Kg5 {[%clk 0:00:11]} 65. Qg3+ {[%clk 0:00:06]}  Kf6 {[%clk 0:00:11]} 66. Qd6+ {[%clk 0:00:06]}  Kf7 {[%clk 0:00:11]} 67. Qd7+ {[%clk 0:00:06]}  Kg6 {[%clk 0:00:11]} 68. Qd6+ {[%clk 0:00:04]}  Kh5 {[%clk 0:00:12]} 69. Qh2+ {[%clk 0:00:02]}  Kg4 {[%clk 0:00:12]} 70. Qg2+ {[%clk 0:00:02]}  Kf4 {[%clk 0:00:12]} 71. Qh2+ {[%clk 0:00:02]}  Ke4 {[%clk 0:00:11]} 72. Qg2+ {[%clk 0:00:02]}  Kd4 {[%clk 0:00:10]} 73. Qf2+ {[%clk 0:00:02]}  Ke4 {[%clk 0:00:08]} 74. Qg2+ {[%clk 0:00:02]}  Ke3 {[%clk 0:00:07]} 75. Qg3+ {[%clk 0:00:01]}  Ke4 {[%clk 0:00:07]} 76. Qg2+ {[%clk 0:00:02]} 1/2-1/2


[Site "https://www.chess.com"]

[Event "Titled Tuesday Blitz November 01 Late 2022"]
[White "Chigaev, Maksim"]
[Black "Martinez Alcantara, Jose Eduardo"]
[WhiteFideId "4108116"]
[BlackFideId "3805662"]
[WhiteElo "2537"]
[BlackElo "2703"]
[Result "0-1"]
[Round "07"]
[TimeControl "180+1"]
[Date "2022.11.01"]
[WhiteClock "0:00:04"]
[BlackClock "0:00:09"]

1. Nf3 {[%clk 0:03:00]}  c5 {[%clk 0:02:59]} 2. c4 {[%clk 0:03:00]}  Nc6 {[%clk 0:02:59]} 3. Nc3 {[%clk 0:03:00]}  g6 {[%clk 0:02:59]} 4. e3 {[%clk 0:02:59]}  Bg7 {[%clk 0:03:00]} 5. d4 {[%clk 0:02:59]}  d6 {[%clk 0:03:01]} 6. d5 {[%clk 0:02:59]}  Nb4 {[%clk 0:03:01]} 7. a3 {[%clk 0:02:57]}  Na6 {[%clk 0:03:02]} 8. Bd2 {[%clk 0:02:56]}  Nf6 {[%clk 0:03:02]} 9. e4 {[%clk 0:02:56]}  O-O {[%clk 0:03:01]} 10. h3 {[%clk 0:02:56]}  e5 {[%clk 0:03:01]} 11. Bd3 {[%clk 0:02:36]}  Nh5 {[%clk 0:02:57]} 12. O-O {[%clk 0:02:37]}  Nf4 {[%clk 0:02:56]} 13. Bc2 {[%clk 0:02:23]}  Bd7 {[%clk 0:02:31]} 14. Re1 {[%clk 0:02:23]}  h6 {[%clk 0:02:27]} 15. Bxf4 {[%clk 0:02:17]}  exf4 {[%clk 0:02:27]} 16. e5 {[%clk 0:02:18]}  dxe5 {[%clk 0:02:16]} 17. Nxe5 {[%clk 0:02:19]}  Re8 {[%clk 0:02:14]} 18. Nxd7 {[%clk 0:02:10]}  Rxe1+ {[%clk 0:02:14]} 19. Qxe1 {[%clk 0:02:09]}  Qxd7 {[%clk 0:02:15]} 20. Ba4 {[%clk 0:02:04]}  Qd6 {[%clk 0:02:12]} 21. Rd1 {[%clk 0:01:55]}  Rd8 {[%clk 0:02:01]} 22. Ne4 {[%clk 0:01:36]}  Qb6 {[%clk 0:01:52]} 23. b3 {[%clk 0:01:12]}  Nc7 {[%clk 0:01:38]} 24. b4 {[%clk 0:01:05]}  Na6 {[%clk 0:01:27]} 25. Bb5 {[%clk 0:00:59]}  cxb4 {[%clk 0:01:25]} 26. axb4 {[%clk 0:00:52]}  Nc7 {[%clk 0:01:19]} 27. Ba4 {[%clk 0:00:52]}  Qa6 {[%clk 0:01:19]} 28. Bb3 {[%clk 0:00:45]}  Qa3 {[%clk 0:01:19]} 29. Bc2 {[%clk 0:00:33]}  Qb2 {[%clk 0:01:05]} 30. Bd3 {[%clk 0:00:26]}  b5 {[%clk 0:01:03]} 31. d6 {[%clk 0:00:25]}  Ne6 {[%clk 0:01:04]} 32. c5 {[%clk 0:00:25]}  f3 {[%clk 0:00:56]} 33. Qd2 {[%clk 0:00:15]}  Qe5 {[%clk 0:00:54]} 34. c6 {[%clk 0:00:09]}  Nf4 {[%clk 0:00:30]} 35. c7 {[%clk 0:00:08]}  Rf8 {[%clk 0:00:31]} 36. gxf3 {[%clk 0:00:06]}  Nxh3+ {[%clk 0:00:30]} 37. Kg2 {[%clk 0:00:06]}  Nf4+ {[%clk 0:00:30]} 38. Kf1 {[%clk 0:00:07]}  Qf5 {[%clk 0:00:23]} 39. Ng3 {[%clk 0:00:03]}  Qh3+ {[%clk 0:00:22]} 40. Ke1 {[%clk 0:00:03]}  Be5 {[%clk 0:00:18]} 41. Be4 {[%clk 0:00:03]}  Qg2 {[%clk 0:00:16]} 42. Qe3 {[%clk 0:00:02]}  Qg1+ {[%clk 0:00:10]} 43. Kd2 {[%clk 0:00:02]}  Qh2 {[%clk 0:00:11]} 44. Kc2 {[%clk 0:00:02]}  Ne6 {[%clk 0:00:10]} 45. d7 {[%clk 0:00:03]}  Bxc7 {[%clk 0:00:10]} 46. Bd5 {[%clk 0:00:03]}  Nd8 {[%clk 0:00:08]} 47. Ne4 {[%clk 0:00:03]}  Qe5 {[%clk 0:00:08]} 48. f4 {[%clk 0:00:02]}  Qf5 {[%clk 0:00:08]} 49. Qc3 {[%clk 0:00:02]}  Bxf4 {[%clk 0:00:04]} 50. Kb3 {[%clk 0:00:02]}  Be5 {[%clk 0:00:04]} 51. Qc5 {[%clk 0:00:02]}  Bg7 {[%clk 0:00:05]} 52. f3 {[%clk 0:00:01]}  Qxf3+ {[%clk 0:00:05]} 53. Kc2 {[%clk 0:00:01]}  Qe2+ {[%clk 0:00:05]} 54. Rd2 {[%clk 0:00:02]}  Qg4 {[%clk 0:00:05]} 55. Qxb5 {[%clk 0:00:02]}  Qf5 {[%clk 0:00:06]} 56. Qd3 {[%clk 0:00:02]}  h5 {[%clk 0:00:06]} 57. Nc5 {[%clk 0:00:02]}  Qe5 {[%clk 0:00:06]} 58. Re2 {[%clk 0:00:03]}  Qb2+ {[%clk 0:00:06]} 59. Kd1 {[%clk 0:00:03]}  Qxb4 {[%clk 0:00:07]} 60. Ne4 {[%clk 0:00:03]}  Qa4+ {[%clk 0:00:07]} 61. Bb3 {[%clk 0:00:03]}  Qa1+ {[%clk 0:00:06]} 62. Kc2 {[%clk 0:00:03]}  Qb2+ {[%clk 0:00:06]} 63. Kd1 {[%clk 0:00:03]}  Qa1+ {[%clk 0:00:07]} 64. Kc2 {[%clk 0:00:03]}  Qa5 {[%clk 0:00:08]} 65. Nd6 {[%clk 0:00:03]}  Qc7+ {[%clk 0:00:08]} 66. Nc4 {[%clk 0:00:03]}  Nc6 {[%clk 0:00:08]} 67. Re8 {[%clk 0:00:03]}  Nb4+ {[%clk 0:00:08]} 68. Kd2 {[%clk 0:00:04]}  Nxd3 {[%clk 0:00:09]} 0-1


[Site "https://www.chess.com"]

[Event "Titled Tuesday Blitz November 01 Late 2022"]
[White "Deac, Bogdan-Daniel"]
[Black "Baskakov, Egor"]
[WhiteFideId "1226380"]
[BlackFideId "24197866"]
[WhiteElo "2648"]
[BlackElo "2211"]
[Result "1-0"]
[Round "07"]
[TimeControl "180+1"]
[Date "2022.11.01"]
[WhiteClock "0:01:04"]
[BlackClock "0:01:11"]

1. Nf3 {[%clk 0:03:00]}  Nf6 {[%clk 0:02:59]} 2. c4 {[%clk 0:03:00]}  e6 {[%clk 0:02:59]} 3. b3 {[%clk 0:03:00]}  d5 {[%clk 0:03:00]} 4. Bb2 {[%clk 0:03:01]}  Be7 {[%clk 0:03:00]} 5. g3 {[%clk 0:03:01]}  O-O {[%clk 0:03:01]} 6. Bg2 {[%clk 0:03:01]}  b6 {[%clk 0:03:01]} 7. O-O {[%clk 0:03:01]}  Bb7 {[%clk 0:03:02]} 8. cxd5 {[%clk 0:03:02]}  exd5 {[%clk 0:03:02]} 9. d4 {[%clk 0:03:01]}  Ne4 {[%clk 0:03:02]} 10. Nc3 {[%clk 0:03:01]}  f5 {[%clk 0:03:01]} 11. Rc1 {[%clk 0:02:59]}  a6 {[%clk 0:03:01]} 12. e3 {[%clk 0:02:59]}  Nd7 {[%clk 0:02:59]} 13. Ne2 {[%clk 0:02:59]}  Bd6 {[%clk 0:02:59]} 14. Nf4 {[%clk 0:02:57]}  Qe7 {[%clk 0:02:58]} 15. h4 {[%clk 0:02:57]}  Rae8 {[%clk 0:02:57]} 16. Qc2 {[%clk 0:02:54]}  g6 {[%clk 0:02:56]} 17. Ne5 {[%clk 0:02:50]}  Qg7 {[%clk 0:02:43]} 18. Rfd1 {[%clk 0:02:43]}  Re7 {[%clk 0:02:40]} 19. Nc6 {[%clk 0:02:41]}  Ree8 {[%clk 0:02:40]} 20. Nxd5 {[%clk 0:02:34]}  Nxg3 {[%clk 0:02:34]} 21. fxg3 {[%clk 0:02:27]}  Bxg3 {[%clk 0:02:35]} 22. Qe2 {[%clk 0:02:07]}  Qh6 {[%clk 0:02:29]} 23. Nde7+ {[%clk 0:01:58]}  Kh8 {[%clk 0:02:19]} 24. d5+ {[%clk 0:01:58]}  Nf6 {[%clk 0:02:19]} 25. h5 {[%clk 0:01:51]}  Bd6 {[%clk 0:02:04]} 26. hxg6 {[%clk 0:01:37]}  Bxc6 {[%clk 0:01:44]} 27. g7+ {[%clk 0:01:21]}  Qxg7 {[%clk 0:01:44]} 28. Nxf5 {[%clk 0:01:22]}  Qg5 {[%clk 0:01:35]} 29. Nxd6 {[%clk 0:01:15]}  Bb5 {[%clk 0:01:11]} 30. Nxb5 {[%clk 0:01:10]}  Rxe3 {[%clk 0:01:11]} 31. Qf2 {[%clk 0:01:10]}  axb5 {[%clk 0:01:11]} 32. Rc6 {[%clk 0:01:04]} 1-0


[Site "https://www.chess.com"]

[Event "Titled Tuesday Blitz November 01 Late 2022"]
[White "Do Nascimento,Christian Almeida"]
[Black "Jimenez Fernandez, Rebeca"]
[WhiteFideId "2143801"]
[BlackFideId "32070934"]
[WhiteElo "2079"]
[BlackElo "1946"]
[Result "1-0"]
[Round "07"]
[TimeControl "180+1"]
[Date "2022.11.02"]
[WhiteClock "0:00:14"]
[BlackClock "0:00:01"]

1. e4 {[%clk 0:03:00]}  c5 {[%clk 0:02:58]} 2. Nf3 {[%clk 0:03:00]}  Nc6 {[%clk 0:02:58]} 3. Nc3 {[%clk 0:03:00]}  g6 {[%clk 0:02:58]} 4. d4 {[%clk 0:03:00]}  cxd4 {[%clk 0:02:58]} 5. Nxd4 {[%clk 0:03:01]}  Bg7 {[%clk 0:02:58]} 6. Be3 {[%clk 0:03:02]}  Nf6 {[%clk 0:02:58]} 7. Bc4 {[%clk 0:03:02]}  Qa5 {[%clk 0:02:58]} 8. O-O {[%clk 0:02:56]}  O-O {[%clk 0:02:56]} 9. Bb3 {[%clk 0:02:55]}  d6 {[%clk 0:02:55]} 10. f3 {[%clk 0:02:52]}  Bd7 {[%clk 0:02:55]} 11. Qd2 {[%clk 0:02:52]}  Rac8 {[%clk 0:02:44]} 12. Rad1 {[%clk 0:02:50]}  Ne5 {[%clk 0:02:44]} 13. Nd5 {[%clk 0:02:43]}  Qd8 {[%clk 0:02:43]} 14. Bh6 {[%clk 0:02:34]}  Nxd5 {[%clk 0:02:27]} 15. Bxg7 {[%clk 0:02:27]}  Kxg7 {[%clk 0:02:26]} 16. Bxd5 {[%clk 0:02:27]}  Nc4 {[%clk 0:02:26]} 17. Bxc4 {[%clk 0:02:26]}  Rxc4 {[%clk 0:02:25]} 18. b3 {[%clk 0:02:27]}  Rc5 {[%clk 0:02:08]} 19. c4 {[%clk 0:02:26]}  b5 {[%clk 0:01:54]} 20. cxb5 {[%clk 0:02:20]}  Bxb5 {[%clk 0:01:54]} 21. Rfe1 {[%clk 0:01:54]}  Qb6 {[%clk 0:01:47]} 22. Kh1 {[%clk 0:01:45]}  Rfc8 {[%clk 0:01:44]} 23. Qb2 {[%clk 0:01:36]}  Kg8 {[%clk 0:01:38]} 24. f4 {[%clk 0:01:35]}  e5 {[%clk 0:00:54]} 25. Nxb5 {[%clk 0:01:25]}  Rxb5 {[%clk 0:00:40]} 26. Qd2 {[%clk 0:01:24]}  Ra5 {[%clk 0:00:20]} 27. fxe5 {[%clk 0:01:12]}  dxe5 {[%clk 0:00:19]} 28. Rf1 {[%clk 0:01:08]}  Rac5 {[%clk 0:00:18]} 29. Qf2 {[%clk 0:00:52]}  Qe6 {[%clk 0:00:17]} 30. Rd2 {[%clk 0:00:46]}  Rc1 {[%clk 0:00:16]} 31. Rdd1 {[%clk 0:00:44]}  R1c2 {[%clk 0:00:15]} 32. Qf3 {[%clk 0:00:44]}  R8c7 {[%clk 0:00:12]} 33. h3 {[%clk 0:00:39]}  Rxa2 {[%clk 0:00:11]} 34. Qe3 {[%clk 0:00:35]}  Rcc2 {[%clk 0:00:11]} 35. Qh6 {[%clk 0:00:29]}  Qe8 {[%clk 0:00:07]} 36. Rg1 {[%clk 0:00:20]}  Qc8 {[%clk 0:00:05]} 37. Qh4 {[%clk 0:00:18]}  Kg7 {[%clk 0:00:04]} 38. Rd6 {[%clk 0:00:16]}  Rab2 {[%clk 0:00:02]} 39. Qf6+ {[%clk 0:00:16]}  Kg8 {[%clk 0:00:02]} 40. Rd8+ {[%clk 0:00:16]}  Qxd8 {[%clk 0:00:03]} 41. Qxd8+ {[%clk 0:00:17]}  Kg7 {[%clk 0:00:03]} 42. Qd5 {[%clk 0:00:16]}  f6 {[%clk 0:00:01]} 43. Qd7+ {[%clk 0:00:15]}  Kh6 {[%clk 0:00:01]} 44. Qf7 {[%clk 0:00:15]}  Kg5 {[%clk 0:00:01]} 45. h4+ {[%clk 0:00:14]}  Kxh4 {[%clk 0:00:01]} 46. Qxf6+ {[%clk 0:00:14]} 1-0


[Site "https://www.chess.com"]

[Event "Titled Tuesday Blitz November 01 Late 2022"]
[White "Drygalov, Sergey"]
[Black "Rustemov, Alexander"]
[WhiteFideId "24171743"]
[BlackFideId "4119002"]
[WhiteElo "2528"]
[BlackElo "2917"]
[Result "0-1"]
[Round "07"]
[TimeControl "180+1"]
[Date "2022.11.01"]
[WhiteClock "0:00:04"]
[BlackClock "0:00:21"]

1. d4 {[%clk 0:02:58]}  d5 {[%clk 0:02:58]} 2. c4 {[%clk 0:02:58]}  c6 {[%clk 0:02:59]} 3. Nf3 {[%clk 0:02:58]}  Nf6 {[%clk 0:02:59]} 4. Nc3 {[%clk 0:02:58]}  a6 {[%clk 0:03:00]} 5. c5 {[%clk 0:02:58]}  Bf5 {[%clk 0:02:57]} 6. Bf4 {[%clk 0:02:58]}  Nbd7 {[%clk 0:02:57]} 7. e3 {[%clk 0:02:58]}  h6 {[%clk 0:02:57]} 8. h3 {[%clk 0:02:58]}  e6 {[%clk 0:02:57]} 9. Qb3 {[%clk 0:02:57]}  Qc8 {[%clk 0:02:57]} 10. Be2 {[%clk 0:02:56]}  Be7 {[%clk 0:02:57]} 11. O-O {[%clk 0:02:32]}  O-O {[%clk 0:02:56]} 12. Na4 {[%clk 0:02:16]}  Re8 {[%clk 0:02:52]} 13. Rac1 {[%clk 0:02:13]}  Bd8 {[%clk 0:02:48]} 14. Ne5 {[%clk 0:02:07]}  Bc7 {[%clk 0:02:48]} 15. Nxd7 {[%clk 0:02:07]}  Nxd7 {[%clk 0:02:46]} 16. Bxc7 {[%clk 0:02:01]}  Qxc7 {[%clk 0:02:46]} 17. Nb6 {[%clk 0:02:00]}  Rad8 {[%clk 0:02:44]} 18. f4 {[%clk 0:01:56]}  f6 {[%clk 0:02:44]} 19. Bf3 {[%clk 0:01:52]}  Bg6 {[%clk 0:02:35]} 20. Bg4 {[%clk 0:01:45]}  Nxb6 {[%clk 0:02:34]} 21. Qxb6 {[%clk 0:01:40]}  Qe7 {[%clk 0:02:15]} 22. Kh1 {[%clk 0:01:31]}  Be4 {[%clk 0:02:00]} 23. Bf3 {[%clk 0:01:26]}  Bxf3 {[%clk 0:01:53]} 24. Rxf3 {[%clk 0:01:26]}  e5 {[%clk 0:01:53]} 25. fxe5 {[%clk 0:01:14]}  fxe5 {[%clk 0:01:53]} 26. Rcf1 {[%clk 0:01:14]}  Rd7 {[%clk 0:01:52]} 27. b4 {[%clk 0:00:58]}  exd4 {[%clk 0:01:47]} 28. exd4 {[%clk 0:00:58]}  Qe2 {[%clk 0:01:45]} 29. a4 {[%clk 0:00:56]}  Re6 {[%clk 0:01:35]} 30. Qa7 {[%clk 0:00:52]}  Re8 {[%clk 0:01:23]} 31. Qb6 {[%clk 0:00:45]}  Qb2 {[%clk 0:01:21]} 32. Rf4 {[%clk 0:00:41]}  Rde7 {[%clk 0:01:12]} 33. b5 {[%clk 0:00:37]}  axb5 {[%clk 0:01:10]} 34. axb5 {[%clk 0:00:38]}  Qxb5 {[%clk 0:01:11]} 35. Qxb5 {[%clk 0:00:21]}  cxb5 {[%clk 0:01:11]} 36. Rb1 {[%clk 0:00:21]}  Re1+ {[%clk 0:01:09]} 37. Rf1 {[%clk 0:00:22]}  Rxf1+ {[%clk 0:01:08]} 38. Rxf1 {[%clk 0:00:23]}  Re4 {[%clk 0:00:57]} 39. Rb1 {[%clk 0:00:23]}  Rxd4 {[%clk 0:00:57]} 40. Rxb5 {[%clk 0:00:24]}  Rc4 {[%clk 0:00:56]} 41. Kg1 {[%clk 0:00:24]}  Kh7 {[%clk 0:00:52]} 42. Kf2 {[%clk 0:00:24]}  Kg6 {[%clk 0:00:52]} 43. Ke3 {[%clk 0:00:24]}  h5 {[%clk 0:00:50]} 44. Kd3 {[%clk 0:00:20]}  h4 {[%clk 0:00:49]} 45. Rb6+ {[%clk 0:00:20]}  Kh7 {[%clk 0:00:43]} 46. Rb5 {[%clk 0:00:20]}  Kh6 {[%clk 0:00:42]} 47. Rb6+ {[%clk 0:00:20]}  g6 {[%clk 0:00:41]} 48. Rb5 {[%clk 0:00:13]}  g5 {[%clk 0:00:35]} 49. Rb6+ {[%clk 0:00:06]}  Kh5 {[%clk 0:00:35]} 50. Rb5 {[%clk 0:00:06]}  Kg6 {[%clk 0:00:27]} 51. Rb6+ {[%clk 0:00:06]}  Kf5 {[%clk 0:00:27]} 52. Rb5 {[%clk 0:00:06]}  Kf4 {[%clk 0:00:27]} 53. Rxb7 {[%clk 0:00:03]}  Rxc5 {[%clk 0:00:27]} 54. Rb3 {[%clk 0:00:04]}  Rc4 {[%clk 0:00:23]} 55. Ke2 {[%clk 0:00:04]}  Rc2+ {[%clk 0:00:21]} 56. Kf1 {[%clk 0:00:04]}  d4 {[%clk 0:00:21]} 57. Rb8 {[%clk 0:00:03]}  d3 {[%clk 0:00:21]} 58. Rf8+ {[%clk 0:00:04]}  Ke3 {[%clk 0:00:20]} 59. Re8+ {[%clk 0:00:04]}  Kd4 {[%clk 0:00:19]} 60. Rd8+ {[%clk 0:00:04]}  Kc3 {[%clk 0:00:20]} 61. Rc8+ {[%clk 0:00:04]}  Kd2 {[%clk 0:00:19]} 62. Rd8 {[%clk 0:00:05]}  Rc5 {[%clk 0:00:19]} 63. Kf2 {[%clk 0:00:04]}  Rf5+ {[%clk 0:00:19]} 64. Kg1 {[%clk 0:00:04]}  Ke3 {[%clk 0:00:20]} 65. Re8+ {[%clk 0:00:04]}  Kd4 {[%clk 0:00:20]} 66. Rd8+ {[%clk 0:00:04]}  Rd5 {[%clk 0:00:21]} 0-1


[Site "https://www.chess.com"]

[Event "Titled Tuesday Blitz November 01 Late 2022"]
[White "Fernandez Guillen, Ernesto J."]
[Black "Bluebaum, Matthias"]
[WhiteFideId "3512428"]
[BlackFideId "24651516"]
[WhiteElo "2422"]
[BlackElo "2633"]
[Result "1-0"]
[Round "07"]
[TimeControl "180+1"]
[Date "2022.11.01"]
[WhiteClock "0:00:04"]
[BlackClock "0:00:01"]

1. e4 {[%clk 0:02:57]}  e6 {[%clk 0:02:59]} 2. Nf3 {[%clk 0:02:56]}  d5 {[%clk 0:03:00]} 3. e5 {[%clk 0:02:56]}  c5 {[%clk 0:03:00]} 4. b4 {[%clk 0:02:57]}  b6 {[%clk 0:03:01]} 5. bxc5 {[%clk 0:02:57]}  bxc5 {[%clk 0:03:01]} 6. d3 {[%clk 0:02:57]}  Nc6 {[%clk 0:03:01]} 7. Bf4 {[%clk 0:02:56]}  Nge7 {[%clk 0:02:54]} 8. Nbd2 {[%clk 0:02:56]}  Qc7 {[%clk 0:02:51]} 9. Qe2 {[%clk 0:02:56]}  h6 {[%clk 0:02:51]} 10. h4 {[%clk 0:02:55]}  Nf5 {[%clk 0:02:46]} 11. c3 {[%clk 0:02:54]}  Qa5 {[%clk 0:02:43]} 12. Rc1 {[%clk 0:02:49]}  Qxa2 {[%clk 0:02:35]} 13. g4 {[%clk 0:02:50]}  Nfe7 {[%clk 0:02:35]} 14. Bg2 {[%clk 0:02:50]}  Qa5 {[%clk 0:02:23]} 15. d4 {[%clk 0:02:39]}  Ba6 {[%clk 0:02:18]} 16. Qe3 {[%clk 0:02:33]}  cxd4 {[%clk 0:02:13]} 17. cxd4 {[%clk 0:02:34]}  Nb4 {[%clk 0:02:08]} 18. Bf1 {[%clk 0:02:27]}  Nec6 {[%clk 0:01:51]} 19. Qc3 {[%clk 0:02:16]}  Rb8 {[%clk 0:01:47]} 20. Nb3 {[%clk 0:01:46]}  Qb6 {[%clk 0:01:21]} 21. Bd2 {[%clk 0:01:22]}  Be7 {[%clk 0:01:13]} 22. h5 {[%clk 0:01:21]}  O-O {[%clk 0:01:09]} 23. g5 {[%clk 0:01:16]}  Rfc8 {[%clk 0:01:03]} 24. Nc5 {[%clk 0:01:16]}  Nxd4 {[%clk 0:00:48]} 25. Qxd4 {[%clk 0:00:28]}  Bxc5 {[%clk 0:00:48]} 26. Qg4 {[%clk 0:00:16]}  Bxf2+ {[%clk 0:00:19]} 27. Kd1 {[%clk 0:00:17]}  Rxc1+ {[%clk 0:00:20]} 28. Bxc1 {[%clk 0:00:17]}  Bxf1 {[%clk 0:00:17]} 29. Rxf1 {[%clk 0:00:15]}  Nd3 {[%clk 0:00:12]} 30. gxh6 {[%clk 0:00:11]}  Qb3+ {[%clk 0:00:12]} 31. Ke2 {[%clk 0:00:11]}  Nxc1+ {[%clk 0:00:04]} 32. Kxf2 {[%clk 0:00:12]}  Qc2+ {[%clk 0:00:03]} 33. Kg1 {[%clk 0:00:10]}  Ne2+ {[%clk 0:00:03]} 34. Kh1 {[%clk 0:00:10]}  g6 {[%clk 0:00:04]} 35. hxg6 {[%clk 0:00:10]}  Qxg6 {[%clk 0:00:05]} 36. Ng5 {[%clk 0:00:08]}  Rb3 {[%clk 0:00:03]} 37. Rxf7 {[%clk 0:00:05]}  Ng3+ {[%clk 0:00:01]} 38. Kg2 {[%clk 0:00:06]}  Qc2+ {[%clk 0:00:02]} 39. Kh3 {[%clk 0:00:05]}  Nf5+ {[%clk 0:00:01]} 40. Nf3+ {[%clk 0:00:03]}  Kxf7 {[%clk 0:00:01]} 41. h7 {[%clk 0:00:04]} 1-0


[Site "https://www.chess.com"]

[Event "Titled Tuesday Blitz November 01 Late 2022"]
[White "Gaehwiler, Gabriel"]
[Black "Bazzano, Sebastian"]
[WhiteFideId "1314530"]
[BlackFideId "104566"]
[WhiteElo "2418"]
[BlackElo "2215"]
[Result "1-0"]
[Round "07"]
[TimeControl "180+1"]
[Date "2022.11.02"]
[WhiteClock "0:01:39"]
[BlackClock "0:00:01"]

1. Nf3 {[%clk 0:03:00]}  Nf6 {[%clk 0:02:58]} 2. c4 {[%clk 0:03:01]}  g6 {[%clk 0:02:58]} 3. g3 {[%clk 0:03:02]}  Bg7 {[%clk 0:02:58]} 4. Bg2 {[%clk 0:03:03]}  O-O {[%clk 0:02:58]} 5. O-O {[%clk 0:03:04]}  c5 {[%clk 0:02:58]} 6. d4 {[%clk 0:03:04]}  cxd4 {[%clk 0:02:58]} 7. Nxd4 {[%clk 0:03:05]}  Nc6 {[%clk 0:02:58]} 8. Nc2 {[%clk 0:03:05]}  d6 {[%clk 0:02:58]} 9. Nc3 {[%clk 0:03:05]}  a6 {[%clk 0:02:57]} 10. b3 {[%clk 0:03:05]}  Bd7 {[%clk 0:02:55]} 11. Bb2 {[%clk 0:03:06]}  Rb8 {[%clk 0:02:55]} 12. Nd5 {[%clk 0:03:02]}  Nxd5 {[%clk 0:02:35]} 13. Bxg7 {[%clk 0:03:00]}  Ne3 {[%clk 0:02:22]} 14. Nxe3 {[%clk 0:02:44]}  Kxg7 {[%clk 0:02:22]} 15. Rc1 {[%clk 0:02:44]}  Qa5 {[%clk 0:02:12]} 16. Qc2 {[%clk 0:02:44]}  Qh5 {[%clk 0:02:03]} 17. Rfd1 {[%clk 0:02:43]}  Bh3 {[%clk 0:02:01]} 18. Bf3 {[%clk 0:02:40]}  Qe5 {[%clk 0:01:42]} 19. Rd5 {[%clk 0:02:37]}  Qf6 {[%clk 0:01:16]} 20. Qd2 {[%clk 0:02:35]}  Be6 {[%clk 0:01:06]} 21. Ng4 {[%clk 0:02:21]}  Bxg4 {[%clk 0:00:52]} 22. Bxg4 {[%clk 0:02:02]}  h5 {[%clk 0:00:47]} 23. Bh3 {[%clk 0:02:01]}  h4 {[%clk 0:00:48]} 24. Bg2 {[%clk 0:01:58]}  hxg3 {[%clk 0:00:47]} 25. fxg3 {[%clk 0:01:56]}  Ne5 {[%clk 0:00:23]} 26. Rf1 {[%clk 0:01:55]}  Qe6 {[%clk 0:00:23]} 27. Rd4 {[%clk 0:01:54]}  Ng4 {[%clk 0:00:18]} 28. Rd3 {[%clk 0:01:48]}  Rh8 {[%clk 0:00:12]} 29. h4 {[%clk 0:01:48]}  f5 {[%clk 0:00:08]} 30. Rf4 {[%clk 0:01:46]}  Qe5 {[%clk 0:00:07]} 31. Rd5 {[%clk 0:01:45]}  Qa1+ {[%clk 0:00:06]} 32. Rf1 {[%clk 0:01:44]}  Qf6 {[%clk 0:00:05]} 33. e4 {[%clk 0:01:44]}  e6 {[%clk 0:00:01]} 34. Rxd6 {[%clk 0:01:43]}  Rbd8 {[%clk 0:00:01]} 35. exf5 {[%clk 0:01:42]}  gxf5 {[%clk 0:00:01]} 36. c5 {[%clk 0:01:39]} 1-0


[Site "https://www.chess.com"]